[Event "Late-Titled-Tuesday-Blitz-May-07-2024"]
[Site "Chess.com"]
[Date "2024.05.07"]
[Round "9"]
[White "bancsoo"]
[Black "kemelgallo"]
[Result "1-0"]
[WhiteElo "2858"]
[BlackElo "2666"]
[TimeControl "180+1"]
[EndTime "15:47:00 PDT"]
[Termination "bancsoo won on time"]

1. d4 {[%clk 0:03:00.9]} 1... d5 {[%clk 0:02:59]} 2. Nf3 {[%clk 0:03:00]} 2...
Nf6 {[%clk 0:02:58.4]} 3. Bf4 {[%clk 0:03:00.2]} 3... c5 {[%clk 0:02:58.6]} 4.
e3 {[%clk 0:03:00.3]} 4... e6 {[%clk 0:02:59]} 5. c3 {[%clk 0:02:59.3]} 5... Nc6
{[%clk 0:02:58]} 6. Nbd2 {[%clk 0:02:59.1]} 6... Nh5 {[%clk 0:02:57.4]} 7. Bg5
{[%clk 0:02:49]} 7... f6 {[%clk 0:02:56.4]} 8. Bh4 {[%clk 0:02:43.7]} 8... cxd4
{[%clk 0:02:56.7]} 9. cxd4 {[%clk 0:02:40.4]} 9... Bd6 {[%clk 0:02:54.2]} 10.
Rc1 {[%clk 0:02:35.3]} 10... O-O {[%clk 0:02:51.7]} 11. Bd3 {[%clk 0:02:35]}
11... g5 {[%clk 0:02:51]} 12. Bg3 {[%clk 0:02:34.7]} 12... Nxg3 {[%clk
0:02:43.9]} 13. hxg3 {[%clk 0:02:34.9]} 13... f5 {[%clk 0:02:34.8]} 14. g4
{[%clk 0:02:27.2]} 14... fxg4 {[%clk 0:02:15.9]} 15. Ng1 {[%clk 0:01:58]} 15...
e5 {[%clk 0:01:50.9]} 16. Bxh7+ {[%clk 0:01:45.3]} 16... Kg7 {[%clk 0:01:49.1]}
17. dxe5 {[%clk 0:01:40.3]} 17... Nxe5 {[%clk 0:01:47.1]} 18. Bb1 {[%clk
0:01:40.7]} 18... Qf6 {[%clk 0:01:43.1]} 19. Qe2 {[%clk 0:01:36.7]} 19... Bf5
{[%clk 0:01:41]} 20. e4 {[%clk 0:01:07.5]} 20... Rac8 {[%clk 0:01:40.1]} 21. Rd1
{[%clk 0:01:03.7]} 21... Bg6 {[%clk 0:01:39.7]} 22. exd5 {[%clk 0:00:42.4]}
22... Bxb1 {[%clk 0:01:38.8]} 23. Rxb1 {[%clk 0:00:43]} 23... Bb4 {[%clk
0:01:39]} 24. Kd1 {[%clk 0:00:35]} 24... Ng6 {[%clk 0:01:04.8]} 25. Qd3 {[%clk
0:00:24.7]} 25... Bxd2 {[%clk 0:00:30.8]} 26. Kxd2 {[%clk 0:00:25]} 26... Qf4+
{[%clk 0:00:25.8]} 27. Kd1 {[%clk 0:00:23.6]} 27... Rcd8 {[%clk 0:00:18.2]} 28.
Ne2 {[%clk 0:00:23.6]} 28... Qxf2 {[%clk 0:00:18.1]} 29. Rc1 {[%clk 0:00:20.2]}
29... Rf5 {[%clk 0:00:16.5]} 30. Rc7+ {[%clk 0:00:19.8]} 30... Kg8 {[%clk
0:00:16.7]} 31. d6 {[%clk 0:00:17.6]} 31... Rf7 {[%clk 0:00:04.7]} 32. Rxf7
{[%clk 0:00:16.5]} 32... Qxf7 {[%clk 0:00:04.5]} 33. Nc3 {[%clk 0:00:14.8]}
33... Nf4 {[%clk 0:00:03]} 34. Qd4 {[%clk 0:00:14]} 34... Qg7 {[%clk 0:00:01.6]}
35. Qc4+ {[%clk 0:00:13.7]} 35... Qf7 {[%clk 0:00:01.8]} 36. Rh8+ {[%clk
0:00:13.2]} 36... Kg7 {[%clk 0:00:01.6]} 37. Rh7+ {[%clk 0:00:13.1]} 37... Kxh7
{[%clk 0:00:02.5]} 38. Qxf7+ {[%clk 0:00:13.8]} 38... Kh6 {[%clk 0:00:03.2]} 39.
d7 {[%clk 0:00:14.3]} 39... Ng6 {[%clk 0:00:03.2]} 40. Ne4 {[%clk 0:00:13.5]}
40... Ne5 {[%clk 0:00:02.6]} 41. Qf6+ {[%clk 0:00:13.7]} 41... Kh5 {[%clk
0:00:02.9]} 42. Qxd8 {[%clk 0:00:14.1]} 1-0

[Event "Late-Titled-Tuesday-Blitz-May-07-2024"]
[Site "Chess.com"]
[Date "2024.05.07"]
[Round "9"]
[White "Veleamater"]
[Black "Hirna2005"]
[Result "0-1"]
[WhiteElo "2428"]
[BlackElo "2343"]
[TimeControl "180+1"]
[EndTime "15:47:04 PDT"]
[Termination "Hirna2005 won on time"]

1. g3 {[%clk 0:03:00.9]} 1... g6 {[%clk 0:03:00.2]} 2. Bg2 {[%clk 0:03:00.7]}
2... Bg7 {[%clk 0:03:00.8]} 3. d3 {[%clk 0:03:01.3]} 3... e5 {[%clk 0:03:00.3]}
4. Nc3 {[%clk 0:03:02]} 4... f5 {[%clk 0:03:00.2]} 5. e4 {[%clk 0:03:02.7]} 5...
d6 {[%clk 0:02:59.6]} 6. f4 {[%clk 0:03:00.7]} 6... Nc6 {[%clk 0:02:57.7]} 7.
Nf3 {[%clk 0:03:00.4]} 7... exf4 {[%clk 0:02:52.9]} 8. gxf4 {[%clk 0:02:57.6]}
8... fxe4 {[%clk 0:02:45.8]} 9. dxe4 {[%clk 0:02:56.2]} 9... Nf6 {[%clk
0:02:45.5]} 10. O-O {[%clk 0:02:55.1]} 10... O-O {[%clk 0:02:44.7]} 11. h3
{[%clk 0:02:48.5]} 11... Nh5 {[%clk 0:02:37.8]} 12. Nd5 {[%clk 0:02:43.3]} 12...
Be6 {[%clk 0:02:27.4]} 13. Ng5 {[%clk 0:02:42.4]} 13... Bd7 {[%clk 0:02:20.9]}
14. Be3 {[%clk 0:02:33.7]} 14... h6 {[%clk 0:02:13.7]} 15. Nf3 {[%clk
0:02:29.2]} 15... Ng3 {[%clk 0:02:13.3]} 16. Rf2 {[%clk 0:02:26.1]} 16... Nxe4
{[%clk 0:02:13]} 17. Re2 {[%clk 0:02:14.1]} 17... Ng3 {[%clk 0:01:51.2]} 18. Re1
{[%clk 0:02:13.4]} 18... Nf5 {[%clk 0:01:50.5]} 19. Bf2 {[%clk 0:02:12]} 19...
Rb8 {[%clk 0:01:37.4]} 20. c3 {[%clk 0:02:12]} 20... Kh7 {[%clk 0:01:34.4]} 21.
Qd3 {[%clk 0:02:10.5]} 21... Nfe7 {[%clk 0:01:29.5]} 22. Nh4 {[%clk 0:01:53.6]}
22... Bf5 {[%clk 0:01:28.2]} 23. Nxf5 {[%clk 0:01:49.4]} 23... Nxf5 {[%clk
0:01:26.2]} 24. Re4 {[%clk 0:01:39.5]} 24... Nce7 {[%clk 0:01:22]} 25. Rae1
{[%clk 0:01:37.3]} 25... Nxd5 {[%clk 0:01:21.9]} 26. Qxd5 {[%clk 0:01:36.7]}
26... Qd7 {[%clk 0:01:15]} 27. Qd3 {[%clk 0:01:31.6]} 27... a6 {[%clk
0:01:01.7]} 28. h4 {[%clk 0:01:25.4]} 28... h5 {[%clk 0:00:59.4]} 29. Bh3 {[%clk
0:01:25.5]} 29... Qf7 {[%clk 0:00:48.8]} 30. Re6 {[%clk 0:01:10.3]} 30... Nh6
{[%clk 0:00:39.2]} 31. Bg3 {[%clk 0:00:55]} 31... Rbe8 {[%clk 0:00:36.4]} 32.
Qd5 {[%clk 0:00:48.1]} 32... Nf5 {[%clk 0:00:25.2]} 33. Rxe8 {[%clk 0:00:45]}
33... Qxd5 {[%clk 0:00:21.9]} 34. Rxf8 {[%clk 0:00:35.4]} 34... Bxf8 {[%clk
0:00:20.7]} 35. Bg2 {[%clk 0:00:35.2]} 35... Qc5+ {[%clk 0:00:19.6]} 36. Bf2
{[%clk 0:00:35.3]} 36... Qc4 {[%clk 0:00:19.7]} 37. a3 {[%clk 0:00:34]} 37...
Qxf4 {[%clk 0:00:19.5]} 38. Rf1 {[%clk 0:00:32.7]} 38... Nxh4 {[%clk 0:00:18.4]}
39. Bd4 {[%clk 0:00:29.6]} 39... Qg4 {[%clk 0:00:18.1]} 40. Rf7+ {[%clk
0:00:29.6]} 40... Kg8 {[%clk 0:00:17.2]} 41. Rf2 {[%clk 0:00:26.5]} 41... Bh6
{[%clk 0:00:16.2]} 42. Kh1 {[%clk 0:00:22.8]} 42... c5 {[%clk 0:00:16.1]} 43.
Bd5+ {[%clk 0:00:21.8]} 43... Kh7 {[%clk 0:00:10.6]} 44. Rf7+ {[%clk 0:00:21.2]}
44... Bg7 {[%clk 0:00:10.9]} 45. Rxg7+ {[%clk 0:00:14.3]} 45... Kh6 {[%clk
0:00:10.8]} 46. Bg1 {[%clk 0:00:01.4]} 46... Kxg7 {[%clk 0:00:09.7]} 0-1

[Event "Late-Titled-Tuesday-Blitz-May-07-2024"]
[Site "Chess.com"]
[Date "2024.05.07"]
[Round "9"]
[White "Alex_Sahakyan2006"]
[Black "GMRafpig"]
[Result "1-0"]
[WhiteElo "2854"]
[BlackElo "2732"]
[TimeControl "180+1"]
[EndTime "15:47:07 PDT"]
[Termination "Alex_Sahakyan2006 won on time"]

1. e4 {[%clk 0:02:44.8]} 1... c5 {[%clk 0:02:58.7]} 2. Nf3 {[%clk 0:02:44.8]}
2... d6 {[%clk 0:02:59.1]} 3. d4 {[%clk 0:02:44.6]} 3... cxd4 {[%clk 0:02:59.6]}
4. Qxd4 {[%clk 0:02:45.2]} 4... Nc6 {[%clk 0:02:57.6]} 5. Qd3 {[%clk 0:02:45.5]}
5... g6 {[%clk 0:02:54.9]} 6. Nc3 {[%clk 0:02:45.3]} 6... Bg7 {[%clk 0:02:55.2]}
7. Be2 {[%clk 0:02:42.7]} 7... Nf6 {[%clk 0:02:55]} 8. O-O {[%clk 0:02:39.4]}
8... O-O {[%clk 0:02:54.9]} 9. Nd5 {[%clk 0:02:39.7]} 9... b6 {[%clk 0:02:08.1]}
10. c3 {[%clk 0:02:38.5]} 10... Bb7 {[%clk 0:02:06.8]} 11. Bg5 {[%clk
0:02:35.9]} 11... Nd7 {[%clk 0:01:58.8]} 12. Qc2 {[%clk 0:02:34.2]} 12... Re8
{[%clk 0:01:52.6]} 13. Rad1 {[%clk 0:02:30.9]} 13... h6 {[%clk 0:01:40]} 14. Bh4
{[%clk 0:02:16.8]} 14... g5 {[%clk 0:01:35.9]} 15. Bg3 {[%clk 0:02:11.2]} 15...
Nce5 {[%clk 0:01:34.3]} 16. Nxe5 {[%clk 0:02:09.1]} 16... Nxe5 {[%clk
0:01:34.3]} 17. Bb5 {[%clk 0:02:06.2]} 17... Rf8 {[%clk 0:01:29.7]} 18. f4
{[%clk 0:02:05.2]} 18... gxf4 {[%clk 0:01:28.5]} 19. Rxf4 {[%clk 0:01:56.5]}
19... Ng6 {[%clk 0:01:05.1]} 20. Rg4 {[%clk 0:01:40]} 20... Bc8 {[%clk
0:01:01.3]} 21. Rxg6 {[%clk 0:01:39.7]} 21... fxg6 {[%clk 0:01:01.5]} 22. e5
{[%clk 0:01:35.8]} 22... Bf5 {[%clk 0:01:00.5]} 23. Qb3 {[%clk 0:01:30]} 23...
Kh7 {[%clk 0:01:00.2]} 24. Nb4 {[%clk 0:01:14.1]} 24... Qc8 {[%clk 0:00:54.5]}
25. Bc6 {[%clk 0:00:54]} 25... a5 {[%clk 0:00:50.8]} 26. Bxa8 {[%clk 0:00:53.9]}
26... Qxa8 {[%clk 0:00:39]} 27. Nd5 {[%clk 0:00:49.1]} 27... Be6 {[%clk
0:00:37.2]} 28. Qb5 {[%clk 0:00:47.3]} 28... dxe5 {[%clk 0:00:31]} 29. Nc7
{[%clk 0:00:28.7]} 29... Qc8 {[%clk 0:00:30.9]} 30. Qxb6 {[%clk 0:00:28.7]}
30... Bg4 {[%clk 0:00:28.1]} 31. Re1 {[%clk 0:00:28.2]} 31... Qf5 {[%clk
0:00:27]} 32. Nd5 {[%clk 0:00:19.8]} 32... Be2 {[%clk 0:00:20.5]} 33. h3 {[%clk
0:00:17.6]} 33... Qg5 {[%clk 0:00:13.7]} 34. Kh2 {[%clk 0:00:17]} 34... Bc4
{[%clk 0:00:13.3]} 35. Ne3 {[%clk 0:00:14]} 35... Bg8 {[%clk 0:00:12.3]} 36.
Qxa5 {[%clk 0:00:09.9]} 36... h5 {[%clk 0:00:12.6]} 37. h4 {[%clk 0:00:09.3]}
37... Qf6 {[%clk 0:00:12.6]} 38. Rf1 {[%clk 0:00:08.1]} 38... Qe6 {[%clk
0:00:09.9]} 39. Rxf8 {[%clk 0:00:08.2]} 39... Bxf8 {[%clk 0:00:10.8]} 40. Qxe5
{[%clk 0:00:08.6]} 40... Qxa2 {[%clk 0:00:10.2]} 41. b4 {[%clk 0:00:08.7]} 41...
Bg7 {[%clk 0:00:09.8]} 42. Qxe7 {[%clk 0:00:07.5]} 42... Qe2 {[%clk 0:00:10.1]}
43. Be5 {[%clk 0:00:05.5]} 1-0

[Event "Late-Titled-Tuesday-Blitz-May-07-2024"]
[Site "Chess.com"]
[Date "2024.05.07"]
[Round "9"]
[White "miraitrunks"]
[Black "profaVa"]
[Result "1-0"]
[WhiteElo "2260"]
[BlackElo "2353"]
[TimeControl "180+1"]
[EndTime "15:47:11 PDT"]
[Termination "miraitrunks won by checkmate"]

1. e4 {[%clk 0:02:58.6]} 1... e5 {[%clk 0:02:59.2]} 2. Nf3 {[%clk 0:02:58.7]}
2... Nc6 {[%clk 0:02:59.6]} 3. Bc4 {[%clk 0:02:58.9]} 3... Nf6 {[%clk
0:02:58.7]} 4. Ng5 {[%clk 0:02:59.3]} 4... d5 {[%clk 0:02:58.1]} 5. exd5 {[%clk
0:03:00.2]} 5... Nd4 {[%clk 0:02:57.5]} 6. c3 {[%clk 0:02:42.4]} 6... b5 {[%clk
0:02:56.8]} 7. cxd4 {[%clk 0:02:40.5]} 7... bxc4 {[%clk 0:02:56.2]} 8. Qa4+
{[%clk 0:02:35.9]} 8... Bd7 {[%clk 0:02:53.3]} 9. Qxc4 {[%clk 0:02:35.5]} 9...
e4 {[%clk 0:02:44.9]} 10. O-O {[%clk 0:02:32]} 10... h6 {[%clk 0:02:43.9]} 11.
Nxe4 {[%clk 0:02:31.7]} 11... Nxe4 {[%clk 0:02:43.3]} 12. Re1 {[%clk 0:02:32]}
12... Bd6 {[%clk 0:02:30.5]} 13. Rxe4+ {[%clk 0:02:31.4]} 13... Kf8 {[%clk
0:02:30.4]} 14. d3 {[%clk 0:02:29.9]} 14... Bf5 {[%clk 0:02:26.7]} 15. Nc3
{[%clk 0:02:26.6]} 15... Bxe4 {[%clk 0:02:23.6]} 16. dxe4 {[%clk 0:02:27.5]}
16... Rb8 {[%clk 0:02:14.3]} 17. e5 {[%clk 0:02:27.3]} 17... Bb4 {[%clk
0:02:13.8]} 18. Bf4 {[%clk 0:02:23.5]} 18... Bxc3 {[%clk 0:02:12.9]} 19. bxc3
{[%clk 0:02:24.4]} 19... Kg8 {[%clk 0:02:12]} 20. Re1 {[%clk 0:02:20.9]} 20...
Kh7 {[%clk 0:02:09.4]} 21. e6 {[%clk 0:02:20.3]} 21... fxe6 {[%clk 0:02:08.5]}
22. Bxc7 {[%clk 0:02:20]} 22... Qxd5 {[%clk 0:01:50.6]} 23. Qxd5 {[%clk
0:02:18.7]} 23... exd5 {[%clk 0:01:51.5]} 24. Bxb8 {[%clk 0:02:19]} 24... Rxb8
{[%clk 0:01:51.9]} 25. g4 {[%clk 0:02:16.4]} 25... Rb2 {[%clk 0:01:50]} 26. Re5
{[%clk 0:02:16.3]} 26... Rxa2 {[%clk 0:01:41.1]} 27. Rxd5 {[%clk 0:02:15.8]}
27... a5 {[%clk 0:01:42]} 28. Rc5 {[%clk 0:02:11]} 28... a4 {[%clk 0:01:41.3]}
29. Ra5 {[%clk 0:02:10.2]} 29... Rc2 {[%clk 0:01:39.3]} 30. Rxa4 {[%clk
0:02:07.4]} 30... Rxc3 {[%clk 0:01:39]} 31. Ra8 {[%clk 0:02:06.7]} 31... Rd3
{[%clk 0:01:38]} 32. Rd8 {[%clk 0:02:06.2]} 32... g5 {[%clk 0:01:38.9]} 33. Kf1
{[%clk 0:02:05.1]} 33... Kg6 {[%clk 0:01:36.6]} 34. d5 {[%clk 0:02:04.3]} 34...
Kf6 {[%clk 0:01:34.4]} 35. d6 {[%clk 0:02:04.1]} 35... Ke6 {[%clk 0:00:53.2]}
36. d7 {[%clk 0:02:02.2]} 36... Rxd7 {[%clk 0:00:52.4]} 37. Rxd7 {[%clk
0:02:01.7]} 37... Kxd7 {[%clk 0:00:53.3]} 38. Ke2 {[%clk 0:02:02.1]} 38... Ke6
{[%clk 0:00:48.8]} 39. Ke3 {[%clk 0:02:01.4]} 39... Ke5 {[%clk 0:00:45.1]} 40.
f3 {[%clk 0:02:01.5]} 40... Kf6 {[%clk 0:00:40.1]} 41. Kd4 {[%clk 0:02:01]}
41... Ke6 {[%clk 0:00:36.4]} 42. Ke4 {[%clk 0:02:01.1]} 42... Kf6 {[%clk
0:00:35.3]} 43. Kd5 {[%clk 0:02:00.4]} 43... Kf7 {[%clk 0:00:30.7]} 44. Ke5
{[%clk 0:01:45.3]} 44... Ke7 {[%clk 0:00:30.4]} 45. Kf5 {[%clk 0:01:44.4]} 45...
Kf7 {[%clk 0:00:30.2]} 46. h3 {[%clk 0:01:44.5]} 46... Kg7 {[%clk 0:00:27.7]}
47. Ke5 {[%clk 0:01:36.2]} 47... Kf7 {[%clk 0:00:25.6]} 48. f4 {[%clk
0:01:36.5]} 48... gxf4 {[%clk 0:00:25.1]} 49. Kxf4 {[%clk 0:01:37.4]} 49... Kf6
{[%clk 0:00:23.8]} 50. h4 {[%clk 0:01:37.4]} 50... Ke6 {[%clk 0:00:18.7]} 51.
Ke4 {[%clk 0:01:35.5]} 51... Kf6 {[%clk 0:00:12.6]} 52. Kd5 {[%clk 0:01:35.7]}
52... Kf7 {[%clk 0:00:12.4]} 53. Ke5 {[%clk 0:01:34]} 53... Ke7 {[%clk
0:00:12.3]} 54. Kf5 {[%clk 0:01:34.2]} 54... Kf7 {[%clk 0:00:12.5]} 55. h5
{[%clk 0:01:22.9]} 55... Kg7 {[%clk 0:00:09.4]} 56. Ke6 {[%clk 0:01:23.1]} 56...
Kg8 {[%clk 0:00:09.1]} 57. Kf6 {[%clk 0:01:24]} 57... Kh7 {[%clk 0:00:08.3]} 58.
Kf7 {[%clk 0:01:24.2]} 58... Kh8 {[%clk 0:00:08.1]} 59. Kg6 {[%clk 0:01:25.1]}
59... Kg8 {[%clk 0:00:07.8]} 60. Kxh6 {[%clk 0:01:26]} 60... Kh8 {[%clk
0:00:07.9]} 61. Kg6 {[%clk 0:01:26.4]} 61... Kg8 {[%clk 0:00:08.3]} 62. g5
{[%clk 0:01:27.3]} 62... Kh8 {[%clk 0:00:08.4]} 63. Kf6 {[%clk 0:01:27.8]} 63...
Kh7 {[%clk 0:00:07.3]} 64. g6+ {[%clk 0:01:27.7]} 64... Kg8 {[%clk 0:00:07.5]}
65. g7 {[%clk 0:01:27.6]} 65... Kh7 {[%clk 0:00:07.3]} 66. Kf7 {[%clk
0:01:27.9]} 66... Kh6 {[%clk 0:00:07.1]} 67. g8=Q {[%clk 0:01:26.6]} 67... Kxh5
{[%clk 0:00:07]} 68. Kf6 {[%clk 0:01:25.9]} 68... Kh4 {[%clk 0:00:06.5]} 69. Kf5
{[%clk 0:01:26]} 69... Kh3 {[%clk 0:00:05.5]} 70. Kf4 {[%clk 0:01:26]} 70... Kh2
{[%clk 0:00:06.3]} 71. Kf3 {[%clk 0:01:26.1]} 71... Kh1 {[%clk 0:00:07]} 72.
Qg2# {[%clk 0:01:25.6]} 1-0

[Event "Late-Titled-Tuesday-Blitz-May-07-2024"]
[Site "Chess.com"]
[Date "2024.05.07"]
[Round "9"]
[White "finec2"]
[Black "TheDiscoOne"]
[Result "1-0"]
[WhiteElo "2292"]
[BlackElo "2482"]
[TimeControl "180+1"]
[EndTime "15:47:12 PDT"]
[Termination "finec2 won by checkmate"]

1. e4 {[%clk 0:02:59.1]} 1... c5 {[%clk 0:02:59.1]} 2. Nf3 {[%clk 0:02:58.5]}
2... g6 {[%clk 0:02:59.2]} 3. d4 {[%clk 0:02:57.8]} 3... cxd4 {[%clk 0:03:00.1]}
4. Nxd4 {[%clk 0:02:58]} 4... Nc6 {[%clk 0:02:59]} 5. Nc3 {[%clk 0:02:58.6]}
5... Bg7 {[%clk 0:02:58.7]} 6. Be3 {[%clk 0:02:59.2]} 6... Nf6 {[%clk
0:02:58.7]} 7. Bc4 {[%clk 0:02:59.3]} 7... O-O {[%clk 0:02:55.8]} 8. Bb3 {[%clk
0:03:00]} 8... d6 {[%clk 0:02:55]} 9. f3 {[%clk 0:02:59.2]} 9... Nxd4 {[%clk
0:02:50.2]} 10. Bxd4 {[%clk 0:03:00.1]} 10... Be6 {[%clk 0:02:50.7]} 11. O-O
{[%clk 0:02:57.2]} 11... Bxb3 {[%clk 0:02:49.2]} 12. axb3 {[%clk 0:02:57.1]}
12... a6 {[%clk 0:02:49.2]} 13. Qd2 {[%clk 0:02:54.5]} 13... Qc7 {[%clk
0:02:43.5]} 14. Kh1 {[%clk 0:02:52.9]} 14... Rac8 {[%clk 0:02:42.9]} 15. Rf2
{[%clk 0:02:39.3]} 15... Rfd8 {[%clk 0:02:35.7]} 16. Bxf6 {[%clk 0:02:33.9]}
16... Bxf6 {[%clk 0:02:34.2]} 17. Nd5 {[%clk 0:02:33.7]} 17... Qc5 {[%clk
0:02:30.6]} 18. Nxf6+ {[%clk 0:02:33.1]} 18... exf6 {[%clk 0:02:31.5]} 19. c4
{[%clk 0:02:24.5]} 19... f5 {[%clk 0:02:29.6]} 20. exf5 {[%clk 0:02:10.6]} 20...
Qxf5 {[%clk 0:02:30.5]} 21. Rd1 {[%clk 0:02:09.9]} 21... d5 {[%clk 0:02:24.8]}
22. g4 {[%clk 0:01:58.5]} 22... Qf6 {[%clk 0:02:14.3]} 23. cxd5 {[%clk
0:01:57.6]} 23... Rd6 {[%clk 0:02:11.5]} 24. Qd4 {[%clk 0:01:51.3]} 24... Qe7
{[%clk 0:02:04.9]} 25. Rfd2 {[%clk 0:01:47.5]} 25... Rcd8 {[%clk 0:02:03.3]} 26.
Qe4 {[%clk 0:01:41.1]} 26... Qc7 {[%clk 0:01:56.7]} 27. Kg2 {[%clk 0:01:38.5]}
27... Qb6 {[%clk 0:01:54.2]} 28. b4 {[%clk 0:01:33.9]} 28... Qb5 {[%clk
0:01:51.9]} 29. Kf2 {[%clk 0:01:24.9]} 29... Qb6+ {[%clk 0:01:45.4]} 30. Qd4
{[%clk 0:01:23.7]} 30... Qc7 {[%clk 0:01:39.3]} 31. Qc5 {[%clk 0:01:21.4]} 31...
Qb8 {[%clk 0:01:34.3]} 32. Kg2 {[%clk 0:01:18.8]} 32... Rc8 {[%clk 0:01:31.7]}
33. Qe3 {[%clk 0:01:16.2]} 33... Rcd8 {[%clk 0:01:31.2]} 34. h4 {[%clk
0:01:15.1]} 34... Qc7 {[%clk 0:01:28.4]} 35. h5 {[%clk 0:01:13]} 35... gxh5
{[%clk 0:00:54.6]} 36. gxh5 {[%clk 0:01:12.2]} 36... Kh8 {[%clk 0:00:45.8]} 37.
Qe5+ {[%clk 0:01:09.1]} 37... f6 {[%clk 0:00:44.4]} 38. Qf5 {[%clk 0:01:08.1]}
38... Rg8+ {[%clk 0:00:43]} 39. Kh1 {[%clk 0:00:58.4]} 39... Qg7 {[%clk
0:00:42.3]} 40. Qh3 {[%clk 0:00:46.1]} 40... Qh6 {[%clk 0:00:26.3]} 41. Rg2
{[%clk 0:00:39.7]} 41... Rxg2 {[%clk 0:00:24.2]} 42. Kxg2 {[%clk 0:00:39.3]}
42... Qg5+ {[%clk 0:00:23.7]} 43. Kf2 {[%clk 0:00:30.5]} 43... Rxd5 {[%clk
0:00:17.2]} 44. Qc8+ {[%clk 0:00:29.7]} 44... Kg7 {[%clk 0:00:16.8]} 45. Qxb7+
{[%clk 0:00:29.4]} 45... Kh6 {[%clk 0:00:15.7]} 46. Qxd5 {[%clk 0:00:29.1]}
46... Qh4+ {[%clk 0:00:15.8]} 47. Ke3 {[%clk 0:00:26.6]} 47... Qxb4 {[%clk
0:00:13.3]} 48. Qd4 {[%clk 0:00:23.9]} 48... Qb3+ {[%clk 0:00:12.7]} 49. Rd3
{[%clk 0:00:23.3]} 49... Qc2 {[%clk 0:00:04.2]} 50. Qf4+ {[%clk 0:00:22.6]}
50... Kg7 {[%clk 0:00:02.4]} 51. Rd7+ {[%clk 0:00:22.3]} 51... Kf8 {[%clk
0:00:01.7]} 52. Qxf6+ {[%clk 0:00:21.6]} 52... Ke8 {[%clk 0:00:02]} 53. Qf7#
{[%clk 0:00:20.8]} 1-0

[Event "Late-Titled-Tuesday-Blitz-May-07-2024"]
[Site "Chess.com"]
[Date "2024.05.07"]
[Round "9"]
[White "Godzillator"]
[Black "betta2004"]
[Result "0-1"]
[WhiteElo "2347"]
[BlackElo "2481"]
[TimeControl "180+1"]
[EndTime "15:47:14 PDT"]
[Termination "betta2004 won by checkmate"]

1. c4 {[%clk 0:02:55.9]} 1... c6 {[%clk 0:02:57.7]} 2. e4 {[%clk 0:02:54.3]}
2... d5 {[%clk 0:02:58.2]} 3. exd5 {[%clk 0:02:54.6]} 3... cxd5 {[%clk
0:02:59.1]} 4. d4 {[%clk 0:02:54.2]} 4... Nf6 {[%clk 0:02:58.9]} 5. Nc3 {[%clk
0:02:53.3]} 5... e6 {[%clk 0:02:49.7]} 6. Nf3 {[%clk 0:02:50.9]} 6... Bb4 {[%clk
0:02:49.1]} 7. cxd5 {[%clk 0:02:51.1]} 7... Nxd5 {[%clk 0:02:46.4]} 8. Bd2
{[%clk 0:02:51.2]} 8... Nc6 {[%clk 0:02:43.1]} 9. Bd3 {[%clk 0:02:51]} 9... O-O
{[%clk 0:02:34.3]} 10. O-O {[%clk 0:02:50.9]} 10... Be7 {[%clk 0:02:31.5]} 11.
Qe2 {[%clk 0:02:47]} 11... Nf6 {[%clk 0:02:16.3]} 12. Be3 {[%clk 0:02:45.3]}
12... Nb4 {[%clk 0:02:11.3]} 13. Bb1 {[%clk 0:02:43.9]} 13... b6 {[%clk
0:02:04.7]} 14. a3 {[%clk 0:02:44.1]} 14... Nbd5 {[%clk 0:02:04.7]} 15. Bd3
{[%clk 0:02:42.4]} 15... Bb7 {[%clk 0:01:57.2]} 16. Rad1 {[%clk 0:02:41.6]}
16... Rc8 {[%clk 0:01:53.9]} 17. Ne5 {[%clk 0:02:40.9]} 17... Rxc3 {[%clk
0:01:47.8]} 18. bxc3 {[%clk 0:02:30.4]} 18... Nxc3 {[%clk 0:01:48.7]} 19. Qc2
{[%clk 0:02:26.8]} 19... Nxd1 {[%clk 0:01:48.4]} 20. Rxd1 {[%clk 0:02:26.9]}
20... Qd5 {[%clk 0:01:46.3]} 21. f3 {[%clk 0:02:25.2]} 21... Rc8 {[%clk
0:01:45.8]} 22. Qb1 {[%clk 0:02:24.3]} 22... Rc3 {[%clk 0:01:37.7]} 23. a4
{[%clk 0:02:21.6]} 23... g6 {[%clk 0:01:31]} 24. h3 {[%clk 0:02:05.5]} 24... Qb3
{[%clk 0:01:28.9]} 25. Qa1 {[%clk 0:02:01.2]} 25... Nd5 {[%clk 0:01:25.5]} 26.
Bf2 {[%clk 0:01:57.8]} 26... Qa3 {[%clk 0:01:22]} 27. Qb1 {[%clk 0:01:55.1]}
27... Rb3 {[%clk 0:01:18.8]} 28. Qc2 {[%clk 0:01:53.8]} 28... Rb2 {[%clk
0:01:18.9]} 29. Qc1 {[%clk 0:01:44.6]} 29... Qb4 {[%clk 0:01:11.7]} 30. Nc6
{[%clk 0:01:38.8]} 30... Bxc6 {[%clk 0:01:05.9]} 31. Qxc6 {[%clk 0:01:39.1]}
31... Rxf2 {[%clk 0:01:06.1]} 32. Kxf2 {[%clk 0:01:37.8]} 32... Qxd4+ {[%clk
0:01:06.6]} 33. Kg3 {[%clk 0:01:36.8]} 33... Qf4+ {[%clk 0:00:59.6]} 34. Kf2
{[%clk 0:01:36.3]} 34... Bh4+ {[%clk 0:01:00.4]} 35. Kg1 {[%clk 0:01:34.2]}
35... Bf6 {[%clk 0:00:52.8]} 36. Be4 {[%clk 0:01:30.5]} 36... Nc3 {[%clk
0:00:44.5]} 37. Qe8+ {[%clk 0:01:22.6]} 37... Kg7 {[%clk 0:00:44.1]} 38. Rd7
{[%clk 0:01:20.9]} 38... Bd4+ {[%clk 0:00:41.4]} 39. Rxd4 {[%clk 0:01:05.3]}
39... Qe3+ {[%clk 0:00:41]} 40. Kh1 {[%clk 0:01:04.2]} 40... Qxd4 {[%clk
0:00:40.6]} 41. Qa8 {[%clk 0:01:00.6]} 41... Nxe4 {[%clk 0:00:38.7]} 42. fxe4
{[%clk 0:01:00]} 42... Qxa4 {[%clk 0:00:36.6]} 43. e5 {[%clk 0:00:59]} 43...
Qd1+ {[%clk 0:00:34.3]} 44. Kh2 {[%clk 0:00:59.1]} 44... Qd5 {[%clk 0:00:35.1]}
45. Qxa7 {[%clk 0:00:58.1]} 45... Qxe5+ {[%clk 0:00:35.4]} 46. Kh1 {[%clk
0:00:57.9]} 46... b5 {[%clk 0:00:36]} 47. Qb7 {[%clk 0:00:57.4]} 47... Qd5
{[%clk 0:00:34.5]} 48. Qb6 {[%clk 0:00:55.5]} 48... h5 {[%clk 0:00:34.1]} 49.
Kh2 {[%clk 0:00:53.9]} 49... h4 {[%clk 0:00:34.1]} 50. Kh1 {[%clk 0:00:53.8]}
50... Qc4 {[%clk 0:00:33]} 51. Qd6 {[%clk 0:00:51.9]} 51... b4 {[%clk
0:00:32.3]} 52. Qe5+ {[%clk 0:00:52.1]} 52... Kh7 {[%clk 0:00:32.8]} 53. Qf6
{[%clk 0:00:51.1]} 53... Qc1+ {[%clk 0:00:31.9]} 54. Kh2 {[%clk 0:00:50.1]}
54... Qc7+ {[%clk 0:00:32.5]} 55. Kh1 {[%clk 0:00:50.4]} 55... b3 {[%clk
0:00:33]} 56. Qxh4+ {[%clk 0:00:49.9]} 56... Kg8 {[%clk 0:00:32.7]} 57. Qb4
{[%clk 0:00:48.5]} 57... Qc1+ {[%clk 0:00:30.3]} 58. Kh2 {[%clk 0:00:47.7]}
58... b2 {[%clk 0:00:31.2]} 59. Qb8+ {[%clk 0:00:45.8]} 59... Kh7 {[%clk
0:00:27.9]} 60. Qb7 {[%clk 0:00:34]} 60... Kg7 {[%clk 0:00:28]} 61. Qb8 {[%clk
0:00:29.5]} 61... b1=Q {[%clk 0:00:26.8]} 62. Qe5+ {[%clk 0:00:29.5]} 62... Kh7
{[%clk 0:00:27]} 63. Qf6 {[%clk 0:00:28.3]} 63... Qf5 {[%clk 0:00:26.1]} 64.
Qh4+ {[%clk 0:00:27.4]} 64... Kg7 {[%clk 0:00:26]} 65. Qd4+ {[%clk 0:00:25.4]}
65... Qf6 {[%clk 0:00:26.5]} 66. Qd7 {[%clk 0:00:23.7]} 66... Qcf4+ {[%clk
0:00:25.9]} 67. Kg1 {[%clk 0:00:23.4]} 67... Qf2+ {[%clk 0:00:26.3]} 68. Kh1
{[%clk 0:00:23.5]} 68... Qf1+ {[%clk 0:00:26.8]} 69. Kh2 {[%clk 0:00:23.9]}
69... Q6f4+ {[%clk 0:00:27.7]} 70. g3 {[%clk 0:00:23.9]} 70... Q4f2# {[%clk
0:00:28.5]} 0-1